bitfinex-derivatives/quotes_SOLF0:USTF0_20250117
["timestamp","ask_amount","ask_price","bid_price","bid_amount"]
[1737125113492,4.5594,219.34,219.27,4.5606]
[1737125113700,28.47899118,219.45,219.27,4.5606]
[1737125114003,28.47899118,219.41,219.27,4.5606]
[1737125114201,28.47899118,219.41,219.28,4.5605]
[1737125114409,28.47899118,219.41,219.25,1.4601]
[1737125115005,28.47899118,219.37,219.25,1.4601]
[1737125115206,28.47899118,219.37,219.22,5.66]
[1737125115407,28.47899118,219.37,219.22,10.2218]
[1737125115605,28.47899118,219.37,219.22,5.66]
[1737125115907,28.47899118,219.37,219.21,4.5619]
[1737125116207,28.47899118,219.45,219.17,5.66]
[1737125116208,4.5618,219.23,219.17,5.66]
[1737125116704,28.47899118,219.29,219.17,5.66]
[1737125117108,28.47899118,219.25,219.17,5.66]
[1737125117302,19.35,219.41,219.17,5.66]
[1737125117303,4.5617,219.23,219.17,5.66]
[1737125117497,28.47899118,219.33,219.17,5.66]
[1737125117698,124.0,219.53,219.24,28.47899118]
[1737125117699,28.47899118,219.41,219.24,28.47899118]
[1737125117910,28.47899118,219.45,219.24,28.47899118]
[1737125118103,0.73081775,219.4,219.25,2.9945]
[1737125118299,0.73081775,219.4,219.26,1.5462]
[1737125118507,4.559,219.36,219.27,5.66]
[1737125118707,28.47899118,219.45,219.27,5.66]
[1737125119207,28.47899118,219.45,219.28,28.47899118]
[1737125120503,5.66,219.55,219.28,28.47899118]
[1737125120703,28.47899118,219.49,219.28,28.47899118]
[1737125121103,28.47899118,219.49,219.32,28.47899118]
[1737125121309,28.47899118,219.53,219.32,28.47899118]
[1737125121708,28.47899118,219.44,219.27,5.66]
[1737125121910,4.5583,219.39,219.27,10.2207]
[1737125122209,4.5583,219.39,219.26,1.5462]
[1737125122210,28.47899118,219.44,219.26,7.2062]
[1737125122413,4.5584,219.39,219.26,11.767]
[1737125122707,28.47899118,219.4,219.26,7.2062]
[1737125122908,28.47899118,219.44,219.26,7.2062]
[1737125123210,28.47899118,219.4,219.26,5.66]
[1737125124010,28.47899118,219.44,219.26,5.66]
[1737125124305,4.5584,219.39,219.28,4.5605]
[1737125124505,28.47899118,219.45,219.26,5.66]
[1737125124712,28.47899118,219.45,219.27,29.88939118]
[1737125124907,28.47899118,219.45,219.33,4.5595]
[1737125125118,28.47899118,219.45,219.27,29.88939118]
[1737125125715,28.47899118,219.49,219.31,28.47899118]
[1737125126116,28.47899118,219.49,219.37,4.5587]
[1737125126611,4.5573,219.44,219.39,4.5582]
[1737125126814,28.47899118,219.49,219.31,28.47899118]
[1737125127010,85.4,219.56,219.35,28.47899118]
[1737125127011,28.47899118,219.53,219.35,28.47899118]
[1737125127219,194.0,219.71,219.27,1.4104]
[1737125127220,28.47899118,219.57,219.39,28.47899118]
[1737125127420,28.47899118,219.57,219.39,34.11899118]
[1737125127616,4.5564,219.48,219.42,4.5575]
[1737125127819,28.47899118,219.57,219.39,34.11899118]
[1737125128220,4.5557,219.52,219.44,4.5572]
[1737125128421,28.47899118,219.57,219.39,35.59539118]
[1737125128624,28.47899118,219.53,219.39,7.1164]
[1737125128814,4.5572,219.44,219.39,7.1164]
[1737125129122,28.47899118,219.53,219.39,7.1164]
[1737125129317,28.47899118,219.53,219.4,4.558]
[1737125129522,28.47899118,219.57,219.39,7.1164]
[1737125129718,28.47899118,219.57,219.42,28.47899118]
[1737125129914,28.47899118,219.57,219.39,7.1164]
[1737125130528,28.47899118,219.64,219.43,28.47899118]
[1737125130713,9.1042,219.69,219.45,28.47899118]
[1737125131020,4.5541,219.59,219.51,28.47899118]
[1737125131221,28.47899118,219.66,219.52,5.64]
[1737125131418,4.5546,219.57,219.52,5.64]
[1737125131920,4.5546,219.57,219.52,10.1955]
[1737125132323,4.5546,219.57,219.52,5.64]
[1737125133025,4.5548,219.56,219.52,5.64]
[1737125133324,28.47899118,219.7,219.52,5.64]
[1737125133520,28.47899118,219.7,219.53,1.511]
[1737125133725,28.47899118,219.72,219.54,28.47899118]
[1737125133920,4.5525,219.67,219.58,4.5542]
[1737125134118,28.47899118,219.72,219.54,30.03019118]
[1737125135323,28.47899118,219.8,219.62,28.47899118]
[1737125135620,80.26227213,219.84,219.66,28.47899118]
[1737125135621,108.74126331,219.84,219.66,28.47899118]
[1737125135923,28.47899118,219.88,219.7,28.47899118]
[1737125136321,4.5497,219.81,219.75,4.5508]
[1737125136719,4.5501,219.79,219.72,10.1714]
[1737125136923,28.47899118,219.88,219.72,5.62]
[1737125137124,28.47899118,219.84,219.72,5.62]
[1737125137426,28.47899118,219.84,219.67,4.3663]
[1737125137826,28.47899118,219.89,219.71,28.47899118]
[1737125138124,28.47899118,219.97,219.79,28.47899118]
[1737125138321,28.47899118,219.97,219.8,8.6071]
[1737125138322,4.548,219.89,219.8,8.6071]
[1737125138527,0.73251314,219.96,219.83,28.47899118]
[1737125139530,0.73251314,219.96,219.91,28.47899118]
[1737125140227,0.73251314,219.96,219.9,5.66]
[1737125141924,0.73251314,219.96,219.9,10.2076]
[1737125142124,4.5459,219.99,219.9,10.2076]
[1737125142429,28.47899118,220.03,219.9,5.66]
[1737125142823,28.47899118,220.03,219.83,34.13899118]
[1737125143026,28.47899118,220.03,219.87,28.47899118]
[1737125143723,4.5466,219.96,219.88,4.548]
[1737125143920,28.47899118,220.03,219.87,28.47899118]
[1737125144319,28.47899118,220.03,219.83,34.13899118]
[1737125144722,28.47899118,220.03,219.84,4.5488]
[1737125144928,28.47899118,220.03,219.83,34.13899118]
[1737125145227,4.5465,219.96,219.83,34.13899118]
[1737125145728,28.47899118,220.03,219.86,4.5485]
[1737125145928,28.47899118,220.03,219.83,34.13899118]
[1737125146229,5.66,220.07,219.82,4.5492]
[1737125146230,4.5481,219.89,219.82,4.5492]
[1737125146431,28.47899118,219.95,219.81,5.64]
[1737125146933,28.47899118,219.91,219.81,5.64]
[1737125147134,28.47899118,219.87,219.71,5.64]
[1737125147437,28.47899118,219.83,219.71,5.64]
[1737125148323,4.5512,219.73,219.71,5.64]
[1737125149128,124.0,219.93,219.68,2.9178]
[1737125149428,0.73236131,219.92,219.78,4.5502]
[1737125149634,0.73236131,219.92,219.78,5.68]
[1737125150027,0.73236131,219.92,219.78,34.15899118]
[1737125150231,4.5478,219.9,219.78,34.15899118]
[1737125150533,0.73236131,219.92,219.83,33.02809118]
[1737125150829,0.73236131,219.92,219.83,28.47899118]
[1737125151134,0.73236131,219.92,219.87,28.47899118]
[1737125151536,0.73236131,219.92,219.88,7.1978]
[1737125151735,0.73236131,219.92,219.9,4.5476]
[1737125152233,0.73236131,219.92,219.88,7.1978]
[1737125152438,0.73236131,219.92,219.88,5.66]
[1737125152732,4.5478,219.9,219.88,5.66]
[1737125152926,28.47899118,219.91,219.68,1.4694]
[1737125153130,0.73236131,219.92,219.76,28.47899118]
[1737125153634,28.47899118,219.9,219.72,28.47899118]
[1737125154032,28.47899118,219.86,219.69,1.4111]
[1737125154937,28.47899118,219.82,219.66,5.68]
[1737125155132,28.47899118,219.78,219.58,2.843]
[1737125155333,4.5533,219.63,219.58,2.843]
[1737125155540,28.47899118,219.73,219.58,1.4111]
[1737125155734,124.0,219.87,219.58,1.4111]
[1737125155930,28.47899118,219.78,219.58,1.4111]
[1737125156132,28.47899118,219.78,219.61,28.47899118]
[1737125156840,28.47899118,219.82,219.61,28.47899118]
[1737125157038,28.47899118,219.82,219.62,5.68]
[1737125157241,4.5506,219.76,219.65,4.5528]
[1737125157543,28.47899118,219.82,219.65,28.47899118]
[1737125157940,28.47899118,219.82,219.61,28.47899118]
[1737125158239,28.47899118,219.78,219.61,28.47899118]
[1737125158435,28.47899118,219.82,219.61,28.47899118]
[1737125159337,28.47899118,219.86,219.65,28.47899118]
[1737125159638,4.5506,219.76,219.65,28.47899118]
[1737125160035,28.47899118,219.86,219.69,28.47899118]
[1737125160240,28.47899118,219.9,219.73,28.47899118]
[1737125160832,28.47899118,219.9,219.7,8.6591]
[1737125161033,28.47899118,219.86,219.7,8.6591]
[1737125161235,28.47899118,219.9,219.7,8.6591]
[1737125161641,4.5493,219.83,219.76,4.5506]
[1737125162041,4.5502,219.78,219.71,4.5515]
[1737125162236,4.5502,219.78,219.7,8.6591]
[1737125162237,28.47899118,219.86,219.7,8.6591]
[1737125163547,28.47899118,219.73,219.52,1.4335]
[1737125163746,28.47899118,219.68,219.52,1.4335]
[1737125164144,28.47899118,219.64,219.52,1.4335]
[1737125164545,4.5546,219.57,219.52,1.4335]
[1737125164845,28.47899118,219.64,219.52,1.4335]
[1737125165046,4.5525,219.68,219.57,4.5544]
[1737125165240,28.47899118,219.71,219.55,5.86]
[1737125165444,28.47899118,219.75,219.56,29.31580579]
[1737125165647,194.0,219.91,219.6,42.17899118]
[1737125165844,28.47899118,219.79,219.61,1.5069]
[1737125166044,4.5521,219.69,219.62,4.5535]
[1737125166348,28.47899118,219.63,219.52,1.4335]
[1737125167340,28.47899118,219.67,219.52,1.4335]
[1737125167541,28.47899118,219.71,219.53,28.47899118]
[1737125168050,28.47899118,219.71,219.57,4.5545]
[1737125168346,28.47899118,219.71,219.53,28.47899118]
[1737125168546,28.47899118,219.67,219.52,1.4335]
[1737125169043,4.5525,219.67,219.53,28.47899118]
[1737125169246,28.47899118,219.71,219.53,28.47899118]
[1737125169440,4.5538,219.61,219.54,4.555]
[1737125169640,28.47899118,219.67,219.54,4.555]
[1737125169846,28.47899118,219.67,219.52,1.4335]
[1737125170449,28.47899118,219.67,219.52,5.989]
[1737125170751,4.5546,219.57,219.52,1.4335]
[1737125171440,4.5531,219.65,219.52,1.4335]
[1737125171641,28.47899118,219.71,219.53,28.47899118]
[1737125172148,4.5531,219.64,219.53,28.47899118]
[1737125172546,4.5531,219.64,219.48,1.5069]
[1737125172547,4.5567,219.47,219.31,13.7]
[1737125172748,28.47899118,219.52,219.38,1.445]
[1737125172946,28.47899118,219.52,219.39,3.2157251]
[1737125173145,28.47899118,219.52,219.43,4.5574]
[1737125173450,4.5563,219.49,219.43,4.5574]
[1737125173649,28.47899118,219.56,219.43,5.92]
[1737125173951,28.47899118,219.65,219.43,34.39899118]
[1737125174251,4.5544,219.58,219.44,1.4161]
[1737125174444,28.47899118,219.65,219.44,1.4161]
[1737125174651,4.5546,219.57,219.51,4.5557]
[1737125174848,28.47899118,219.65,219.45,5.92]
[1737125175049,28.47899118,219.65,219.46,0.83713504]
[1737125175246,28.47899118,219.65,219.45,5.92]
[1737125175552,28.47899118,219.57,219.44,1.4161]
[1737125175852,28.47899118,219.61,219.44,1.4161]
[1737125176148,28.47899118,219.65,219.44,1.4161]
[1737125176649,28.47899118,219.57,219.44,1.4161]
[1737125177050,4.5559,219.51,219.45,4.557]
[1737125177347,28.47899118,219.57,219.44,1.4161]
[1737125177946,4.5565,219.48,219.44,1.4161]
[1737125178244,28.47899118,219.57,219.44,1.4161]
[1737125178443,207.66,219.64,219.39,1.4668]
[1737125178648,28.47899118,219.53,219.39,1.4668]
[1737125179049,28.47899118,219.49,219.31,28.47899118]
[1737125179255,28.47899118,219.53,219.35,28.47899118]
[1737125179548,4.5566,219.48,219.42,4.5575]
[1737125179952,4.5566,219.48,219.35,28.47899118]
[1737125180351,4.5566,219.48,219.43,4.5574]
[1737125180552,28.47899118,219.53,219.35,28.47899118]
[1737125181659,28.47899118,219.49,219.32,7.4086]
[1737125181853,28.47899118,219.45,219.32,1.5086]
[1737125182159,28.47899118,219.45,219.29,3.0116]
[1737125182160,28.47899118,219.41,219.29,7.5719]
[1737125182656,28.47899118,219.41,219.29,1.5157]
[1737125182855,5.9,219.5,219.16,1.4614]
[1737125182856,28.47899118,219.37,219.19,28.47899118]
[1737125183155,28.47899118,219.33,219.17,2.9923]
[1737125183355,28.47899118,219.33,219.18,5.9]
[1737125183551,28.47899118,219.33,219.17,8.8723]
[1737125183751,4.5612,219.25,219.19,4.5624]
[1737125184153,28.47899118,219.33,219.17,8.8723]
[1737125184360,28.47899118,219.36,219.17,8.8723]
[1737125184861,28.47899118,219.32,219.18,4.5626]
[1737125185157,28.47899118,219.32,219.17,8.8723]
[1737125185562,4.5613,219.25,219.18,4.5626]
[1737125185859,28.47899118,219.28,219.18,4.5626]
[1737125186054,28.47899118,219.28,219.19,4.5624]
[1737125186252,28.47899118,219.28,219.17,8.8723]
[1737125186654,28.47899118,219.28,219.17,2.9923]
[1737125186863,28.47899118,219.28,219.17,7.555]
[1737125187162,28.47899118,219.32,219.17,2.9923]
[1737125187455,28.47899118,219.36,219.17,2.9923]
[1737125188153,28.47899118,219.4,219.23,28.47899118]
[1737125188355,194.0,219.41,219.24,5.86]
[1737125189558,194.0,219.41,219.28,4.5606]
[1737125190361,4.5595,219.34,219.28,4.5606]
[1737125190555,28.47899118,219.37,219.24,5.86]
[1737125190759,28.47899118,219.37,219.19,5.84]
[1737125191061,28.47899118,219.33,219.16,28.47899118]
[1737125191260,28.47899118,219.33,219.18,2.992]
[1737125191561,28.47899118,219.33,219.24,4.5612]
[1737125191959,28.47899118,219.37,219.18,2.992]
[1737125192160,28.47899118,219.37,219.2,28.47899118]
[1737125192463,4.5595,219.33,219.2,28.47899118]
[1737125192651,28.47899118,219.37,219.27,4.5607]
[1737125192857,28.47899118,219.33,219.18,2.992]
[1737125193059,28.47899118,219.29,219.18,2.992]
[1737125193263,28.47899118,219.29,219.18,1.5373]
[1737125193964,28.47899118,219.29,219.13,7.2947]
[1737125194162,4.5617,219.23,219.18,4.5626]
[1737125194362,28.47899118,219.29,219.13,8.7287]
[1737125194763,4.5622,219.2,219.15,4.5633]
[1737125195362,28.47899118,219.29,219.13,8.7287]
[1737125195560,4.562,219.21,219.16,4.5631]
[1737125195762,28.47899118,219.29,219.13,8.7287]
[1737125195964,4.562,219.21,219.13,8.7287]
[1737125196263,28.47899118,219.29,219.13,2.8887]
[1737125196463,4.5625,219.19,219.14,4.5633]
[1737125196853,28.47899118,219.25,219.09,5.82]
[1737125197059,4.5629,219.17,219.12,4.5639]
[1737125197259,28.47899118,219.25,219.08,1.4074]
[1737125197464,28.47899118,219.21,219.08,1.4074]
[1737125198564,28.47899118,219.25,219.08,1.4074]
[1737125198959,4.5622,219.2,219.15,4.5632]
[1737125199159,28.47899118,219.29,219.09,28.47899118]
[1737125199364,28.47899118,219.29,219.1,0.83855143]
[1737125199760,28.47899118,219.29,219.19,4.5624]
[1737125200459,28.47899118,219.29,219.13,28.47899118]
[1737125200659,28.47899118,219.33,219.16,5.78]
[1737125201166,4.5606,219.28,219.16,5.78]
[1737125201361,4.5606,219.28,219.17,1.5624]
[1737125201567,4.5606,219.28,219.22,4.5616]
[1737125201768,4.5602,219.3,219.22,4.5616]
[1737125201964,28.47899118,219.29,219.17,1.5624]
[1737125202564,4.5616,219.24,219.16,5.78]
[1737125202761,4.5616,219.24,219.18,4.5625]
[1737125202966,4.561,219.27,219.16,5.78]
[1737125203169,28.47899118,219.34,219.22,4.5616]
[1737125203466,4.561,219.26,219.16,5.78]
[1737125203872,28.47899118,219.34,219.16,5.78]
[1737125204067,28.47899118,219.34,219.1,1.5624]
[1737125204272,28.47899118,219.18,218.95,34.66881789]
[1737125204472,28.47899118,219.14,218.96,5.30908342]
[1737125204677,4.5647,219.08,218.96,5.30908342]
[1737125204975,28.47899118,219.14,218.97,0.83878342]
[1737125205176,4.5641,219.11,218.97,0.83878342]
[1737125205379,28.47899118,219.14,219.04,4.5654]
[1737125205567,4.5641,219.11,218.97,0.83878342]
[1737125205877,28.47899118,219.14,218.98,0.83901266]
[1737125206074,28.47899118,219.14,218.96,4.4703]
[1737125206475,28.47899118,219.14,219.03,4.5657]
[1737125206676,28.47899118,219.14,218.96,4.4703]
[1737125206981,28.47899118,219.14,219.02,4.5658]
[1737125207379,4.5647,219.09,219.02,4.5658]
[1737125207577,28.47899118,219.14,219.02,4.5658]
[1737125207777,28.47899118,219.14,218.97,0.83902772]
[1737125208674,4.5643,219.11,219.02,4.5659]
[1737125208875,28.47899118,219.14,218.97,0.83902772]
[1737125209779,4.5642,219.11,219.05,4.5652]
[1737125210376,4.5642,219.11,218.96,10.2703]
[1737125210575,28.47899118,219.14,218.97,0.83902381]
[1737125211882,4.5638,219.13,218.97,0.83902381]
[1737125212273,28.47899118,219.14,218.97,0.83902381]
[1737125212777,28.47899118,219.18,219.04,4.5654]
[1737125213083,28.47899118,219.18,218.99,28.47899118]
[1737125213281,28.47899118,219.18,219.0,0.83880092]
[1737125213482,28.47899118,219.18,219.01,0.83880092]
[1737125213976,28.47899118,219.23,219.03,28.47899118]
[1737125214280,28.47899118,219.23,219.07,28.47899118]
[1737125214481,28.47899118,219.23,219.08,10.2033]
[1737125215583,4.5626,219.18,219.08,10.2033]
[1737125216484,28.47899118,219.29,219.1,28.47899118]
[1737125216881,28.47899118,219.21,219.01,28.47899118]
[1737125217076,5.72,219.26,219.01,5.72]
[1737125217272,28.47899118,219.15,219.02,0.83868621]
[1737125217579,28.47899118,219.15,219.01,5.72]
[1737125217780,4.5642,219.11,219.05,4.5653]
[1737125217981,28.47899118,219.15,219.01,5.72]
[1737125218377,28.47899118,219.19,219.01,34.19899118]
[1737125218882,28.47899118,219.19,219.02,2.35398508]
[1737125219080,28.47899118,219.19,219.02,1.5152]
[1737125219480,4.5635,219.14,219.02,1.5152]
[1737125219881,28.47899118,219.15,218.99,2.9712]
[1737125220084,28.47899118,219.15,219.01,5.7]
[1737125220584,28.47899118,219.15,218.99,2.9712]
[1737125220777,28.47899118,219.11,218.93,29.96789118]
[1737125220979,28.47899118,219.11,218.94,6.53905429]
[1737125221180,28.47899118,219.07,218.89,28.47899118]
[1737125221377,4.567,218.97,218.87,2.9534]
[1737125221686,28.47899118,219.03,218.87,2.9534]
[1737125221881,4.5668,218.99,218.9,4.5684]
[1737125222080,28.47899118,219.03,218.87,2.9534]
[1737125222684,28.47899118,218.99,218.84,5.7]
[1737125223083,4.5685,218.9,218.8,8.7341]
[1737125223292,28.47899118,218.95,218.76,7.1889]
[1737125223483,28.47899118,218.91,218.76,7.1889]
[1737125223680,4.5696,218.85,218.77,4.571]
[1737125223888,119.63899118,218.99,218.64,18.74265226]
[1737125223889,28.47899118,218.83,218.64,47.22164344]
[1737125224088,28.47899118,218.83,218.68,28.47899118]
[1737125224287,28.47899118,218.87,218.68,28.47899118]
[1737125224486,28.47899118,218.79,218.57,1.479]
[1737125224688,28.47899118,218.79,218.6,5.72]
[1737125224886,4.5717,218.75,218.6,5.72]
[1737125225088,28.47899118,218.79,218.63,28.47899118]
[1737125225595,28.47899118,218.83,218.67,28.47899118]
[1737125225886,4.5697,218.85,218.76,4.5713]
[1737125226088,28.47899118,218.87,218.67,28.47899118]
[1737125226287,28.47899118,218.83,218.67,28.47899118]
[1737125226488,28.47899118,218.83,218.68,4.573]
[1737125226489,4.5714,218.77,218.68,4.573]
[1737125226689,28.47899118,218.83,218.65,5.72]
[1737125227289,28.47899118,218.87,218.67,28.47899118]
[1737125227685,4.5697,218.84,218.74,4.5716]
[1737125227991,28.47899118,218.87,218.71,28.47899118]
[1737125228692,28.47899118,218.87,218.72,1.4129]
[1737125229493,28.47899118,218.87,218.72,4.5721]
[1737125229893,4.5707,218.8,218.72,4.5721]
[1737125230293,28.47899118,218.87,218.68,1.5219]
[1737125230493,4.5713,218.77,218.66,1.4129]
[1737125230693,28.47899118,218.87,218.66,1.4129]
[1737125231396,28.47899118,218.87,218.74,4.5718]
[1737125231591,4.5698,218.84,218.69,28.47899118]
[1737125231792,4.5698,218.84,218.7,1.4092]
[1737125232091,28.47899118,218.87,218.7,1.4092]
[1737125232297,4.5696,218.85,218.7,1.4092]
[1737125232592,28.47899118,218.91,218.73,28.47899118]
[1737125232797,28.47899118,218.99,218.78,28.47899118]
[1737125232992,4.5679,218.93,218.79,1.4983]
[1737125233193,28.47899118,218.99,218.87,4.5691]
[1737125233395,4.5676,218.95,218.79,1.4983]
[1737125233694,28.47899118,218.99,218.82,28.47899118]
[1737125233888,28.47899118,219.03,218.82,28.47899118]
[1737125234087,4.5661,219.02,218.86,28.47899118]
[1737125234290,28.47899118,219.11,218.9,28.47899118]
[1737125234490,28.47899118,219.11,218.91,1.4983]
[1737125234694,28.47899118,219.11,218.91,2.9464]
[1737125235096,4.5655,219.05,218.91,2.9464]
[1737125235291,28.47899118,219.15,218.91,2.9464]
[1737125235504,184.76425606,219.19,218.91,2.9464]
[1737125235505,213.24324724,219.19,218.98,28.47899118]
[1737125235795,28.47899118,219.19,218.99,5.72]
[1737125235993,28.47899118,219.15,218.98,28.47899118]
[1737125236199,28.47899118,219.11,218.97,5.72]
[1737125236700,4.5657,219.04,218.97,5.72]
[1737125237198,28.47899118,219.07,218.91,7.2183]
[1737125237700,4.5662,219.01,218.93,4.5678]
[1737125237891,4.5662,219.01,218.91,7.2183]
[1737125238093,28.47899118,219.07,218.91,7.2183]
[1737125238290,51.41025066,219.2,218.91,7.2183]
[1737125238291,28.47899118,219.11,218.91,7.2183]
[1737125238492,28.47899118,219.11,218.92,1.4902]
[1737125238701,28.47899118,219.11,218.94,28.47899118]
[1737125238902,4.5642,219.11,218.94,28.47899118]
[1737125239096,28.47899118,219.15,218.94,28.47899118]
[1737125239495,28.47899118,219.11,218.92,1.4902]
[1737125239700,28.47899118,219.06,218.91,1.4983]
[1737125239901,28.47899118,219.06,218.93,4.5678]
[1737125240203,28.47899118,219.06,218.91,1.4983]
[1737125240499,4.5663,219.01,218.93,4.5678]
[1737125240697,28.47899118,219.11,218.91,1.4983]
[1737125240903,4.5672,218.97,218.9,4.5684]
[1737125241301,28.47899118,219.02,218.87,7.2036]
[1737125241498,4.5673,218.96,218.9,4.5683]
[1737125241803,42.13899118,219.11,218.83,5.7]
[1737125241804,28.47899118,218.98,218.83,5.7]
[1737125242007,28.47899118,219.02,218.83,5.7]
[1737125242495,4.567,218.97,218.84,28.47899118]
[1737125243705,28.47899118,219.02,218.92,4.568]
[1737125243902,28.47899118,219.06,218.88,28.47899118]
[1737125244399,4.5669,218.98,218.88,28.47899118]
[1737125244801,4.5671,218.97,218.88,28.47899118]
[1737125244998,28.47899118,219.06,218.88,28.47899118]
[1737125245204,34.17899118,219.12,218.84,28.47899118]
[1737125245205,28.47899118,219.02,218.84,28.47899118]
[1737125246005,28.47899118,219.02,218.89,4.5686]
[1737125246411,4.5676,218.95,218.83,5.7]
[1737125246607,28.47899118,219.1,218.92,28.47899118]
[1737125246806,28.47899118,219.1,218.93,5.68]
[1737125247003,28.47899118,219.06,218.88,28.47899118]
[1737125247904,28.47899118,219.02,218.84,28.47899118]
[1737125248204,28.47899118,219.02,218.87,4.5689]
[1737125248408,28.47899118,219.02,218.84,34.15899118]
[1737125248604,4.5679,218.93,218.84,34.15899118]
[1737125248804,28.47899118,219.02,218.89,4.5686]
[1737125249606,4.5679,218.93,218.89,4.5686]
[1737125249807,28.47899118,218.97,218.81,1.5054]
[1737125250407,28.47899118,218.97,218.83,4.5697]
[1737125250710,28.47899118,218.97,218.81,1.5054]
[1737125253006,28.47899118,218.89,218.72,29.92729118]
[1737125253211,28.47899118,218.89,218.72,1.4483]
[1737125253401,17.65460466,218.88,218.72,1.4483]
[1737125253806,4.5705,218.81,218.76,4.5713]
[1737125254210,17.65460466,218.88,218.72,1.4483]
[1737125254817,17.65460466,218.84,218.65,17.65460466]
[1737125255017,17.65460466,218.8,218.65,17.65460466]
[1737125255418,4.572,218.74,218.63,34.36616566]
[1737125255920,4.572,218.74,218.68,4.5729]
[1737125256117,4.5712,218.77,218.63,34.36616566]
[1737125256619,28.70616566,218.85,218.67,28.70616566]
[1737125257216,4.57,218.83,218.71,28.70616566]
[1737125257521,28.70616566,218.89,218.73,4.5718]
[1737125257715,28.70616566,218.89,218.71,28.70616566]
[1737125257911,28.70616566,218.85,218.7,5.64]
[1737125258115,4.5707,218.8,218.7,5.64]
[1737125258312,28.70616566,218.9,218.71,28.70616566]
[1737125258716,28.70616566,218.9,218.76,4.5714]
[1737125259524,4.5706,218.8,218.76,4.5714]
[1737125260521,28.70616566,218.9,218.71,28.70616566]
[1737125261420,28.70616566,218.98,218.79,28.70616566]
[1737125261616,28.70616566,218.98,218.79,34.34616566]
[1737125261916,28.70616566,219.02,218.87,28.70616566]
[1737125262117,4.5666,219.0,218.87,28.70616566]
[1737125262418,28.70616566,219.06,218.87,28.70616566]
[1737125262623,4.5659,219.03,218.96,4.5671]
[1737125262827,28.70616566,219.1,218.93,5.64]
[1737125263519,34.34616566,219.14,218.95,28.70616566]
[1737125263726,28.70616566,219.14,218.95,28.70616566]
[1737125263924,28.70616566,219.14,218.99,28.70616566]
[1737125264430,4.5649,219.08,219.01,4.566]
[1737125264625,28.70616566,219.14,218.95,28.70616566]
[1737125264826,28.70616566,219.18,218.99,28.70616566]
[1737125265025,4.5644,219.1,218.99,28.70616566]
[1737125265219,28.70616566,219.18,218.99,28.70616566]
[1737125265420,4.5633,219.15,219.06,4.565]
[1737125265825,51.41025066,219.2,219.06,4.565]
[1737125266229,4.5631,219.16,219.06,4.565]
[1737125266422,51.41025066,219.2,219.07,4.5649]
[1737125267122,51.41025066,219.2,219.05,5.62]
[1737125267529,4.5643,219.1,219.05,5.62]
[1737125268024,51.41025066,219.2,219.05,5.62]
[1737125268430,28.70616566,219.11,218.95,28.70616566]
[1737125268626,28.70616566,219.11,218.93,5.6]
[1737125269527,28.70616566,219.11,218.98,4.5667]
[1737125269727,28.70616566,219.11,218.93,5.6]
[1737125270121,28.70616566,219.11,218.97,4.5668]
[1737125270330,28.70616566,219.11,218.93,5.6]
[1737125270530,28.70616566,219.07,218.93,5.6]
[1737125270826,28.70616566,219.11,218.93,5.6]
[1737125271230,28.70616566,219.11,218.96,4.5671]
[1737125271438,4.5658,219.03,218.96,4.5671]
[1737125271631,4.5658,219.03,218.93,5.6]
[1737125271831,4.5653,219.05,218.93,5.6]
[1737125272031,28.70616566,219.11,218.93,5.6]
[1737125272925,28.70616566,219.11,218.95,4.5672]
[1737125273131,28.70616566,219.11,218.93,5.6]
[1737125273526,28.70616566,219.07,218.94,4.5675]
[1737125273730,28.70616566,219.07,218.92,3.0432]
[1737125275328,4.5667,218.99,218.93,4.5676]
[1737125275732,17.6261068,219.05,218.92,1.5462]
[1737125276532,4.5671,218.97,218.92,6.1142]
[1737125276937,17.6261068,219.05,218.92,1.5462]
[1737125277533,4.5669,218.98,218.93,4.5677]
[1737125277927,17.6261068,219.05,218.92,1.5462]
[1737125278126,17.6261068,219.09,218.92,1.5462]
[1737125278330,17.6261068,219.05,218.92,1.5462]
[1737125278727,17.6261068,219.09,218.92,1.5462]
[1737125279027,17.6261068,219.09,218.93,1.4357]